{"text_format":"1","workbook":"xlsx","n_sheets":5,"sheets":["Startgegevens","Nieuwe regeling","2026","Overgangsregeling 1","Overgangsregeling 2"],"not_rendered":{"charts":3,"images":1,"macros":1,"external_links":0,"defined_names":1,"comments":0,"pivot_tables":0},"unopened":[],"bounds":{"document_bytes":16777216,"sheet_cells":100000,"rows_first":2000,"rows_last":500,"rows_between":2000,"halvings":0,"cell_chars":16384,"cell_head_chars":4096},"cells_cut":0,"cells_raw":0,"read":"whole","date_system":"1900"}

{"sheet":"Startgegevens","index":0,"n_rows":25,"n_cols":19,"rows_kept":25,"cut":false,"hidden":false,"merged":[]}
["Startgegevens"]
[]
["Werktijdsfactor",1,{"$f":"IF(B3=\"\",\"Gegevens ontbreken\",\"\")","v":""}]
["Schaal","LB"]
["Trede",12,{"$f":"IF(B5=\"\",\"Gegevens ontbreken\",\"\")","v":""}]
["Brutoloon",{"$f":"VLOOKUP(B4,'2026'!A:Q,B5+1,FALSE)","v":5520},"Loonpeil 1 januari 2026"]
["Bruteringstoelage",0,{"$f":"IF(B7=\"\",\"Gegevens ontbreken\",\"\")","v":""}]
["Percentage inhouding",{"$f":"IF(AND(B4>0,B4<9),40,50)","v":50}]
[null,null,null,null,null,null,null,null,null,null,null,null,null,null,null,null,{"$f":"DATE(S17,R17,Q17)","v":"1969-01-16"}]
["1. a) Bent u geboren voor 1-10-1958?"]
[]
[]
["1. b) Genoot u per 30-9-2014 bapo?"]
[]
[]
["2. Bent u geboren voor ",{"$f":"Q9","v":"1969-01-16"}]
[null,null,null,null,null,null,null,null,null,null,null,null,null,null,null,null,{"$f":"DAY(TODAY())","v":16},{"$f":"MONTH(TODAY())","v":1},{"$f":"YEAR(TODAY())-57","v":1969}]
[]
["3. a) Bent u geboren voor 1-10-1962?"]
[]
[]
["3. b) Genoot u per 30-9-2014 bapo?"]
[]
[]
[{"$f":"\"U heeft recht op \"&40*B3&\" uur duurzame inzetbaarheid.\"","v":"U heeft recht op 40 uur duurzame inzetbaarheid."}]

{"sheet":"Nieuwe regeling","index":1,"n_rows":32,"n_cols":14,"rows_kept":32,"cut":false,"hidden":true,"merged":[[30,10,31,12],[21,0,21,10],[13,0,13,1],[14,0,14,1],[15,0,15,1],[25,1,25,2],[26,1,26,2],[27,1,27,2],[30,1,30,2],[30,7,30,9]]}
["Nieuwe regeling"]
[]
[]
[]
["Nieuwe regeling"]
["Basisbudget",null,{"$f":"ROUND(40*Startgegevens!$B$3,0)","v":40},"uur"]
["Bijzonder budget",null,{"$f":"ROUND(130*Startgegevens!$B$3,0)","v":130},"uur"]
["Totaal budget",null,{"$f":"SUM(C6:C7)","v":170},"uur"]
["Opgebouwd budget spaarverlof",null,119]
["Gewenst aantal uren op te nemen spaarverlof",null,0,{"$f":"\"tussen 0 en \"&MIN(C9,340*Startgegevens!$B$3)","v":"tussen 0 en 119"}]
["Gewenst aantal uren regulier verlof",null,0,{"$f":"\"tussen 0 en \"&C8","v":"tussen 0 en 170"},null,null,null,null,null,null,null,null,null,{"$f":"\"U heeft jaarlijks recht op \"&C8&\" uur aan verlof. Dit is opgebouwd uit een basisbudget van \"&C6&\" uur en een bijzonder budget van \"&C7","v":"U heeft jaarlijks recht op 170 uur aan verlof. Dit is opgebouwd uit een basisbudget van 40 uur en een bijzonder budget van 130"}]
[null,null,null,null,null,null,null,null,null,null,null,null,null," uur. Wanneer u een deel van dit budget in wilt zetten voor verlof, betaald u over het bijzonder budget een eigen bijdrage. Bij opname van verlof moet eerst het bijzonder budget worden ingezet. "]
["Resultaat",null,null,null,null,null,null,null,null,null,null,null,null,{"$f":"\"Vult u in blauwe vak een gewenst aantal uren verlof in. Dit moet liggen tussen de 0 en de \"&C8&\" uur.\"","v":"Vult u in blauwe vak een gewenst aantal uren verlof in. Dit moet liggen tussen de 0 en de 170 uur."}]
["Aantal uur verlof zonder eigen bijdrage",null,{"$f":"ROUND(IF(C11=\"\",\"\",IF(C11>=C7,C11-C7,0))+IF(C11>0,C10/C8*C6,0),0)","v":0},"uur"]
["Aantal uur mét eigen bijdrage (bijzonder budget)",null,{"$f":"ROUND(IF(C11=\"\",\"\",IF(C11>=C7,C7,C11)+IF(C10>0,C10/C8*C7,0)),0)","v":0},"uur"]
["Beschikbaar voor duurzame inzetbaarheid",null,{"$f":"IF(C11=\"\",\"\",C6-C14+C7-C15+C10)","v":170},"uur"]
[]
["Eigen bijdrage per maand",{"$f":"IF(C11=\"\",\"Vul gewenst aantal uren verlof in\",((C15/1659)*(Startgegevens!$B$6+Startgegevens!$B$7)))*Startgegevens!B8/100","v":0},{"$f":"Startgegevens!C6","v":"Loonpeil 1 januari 2026"}]
[]
[]
["Toelichting"]
[{"$f":"N11&N12&N13","v":"U heeft jaarlijks recht op 170 uur aan verlof. Dit is opgebouwd uit een basisbudget van 40 uur en een bijzonder budget van 130 uur. Wanneer u een deel van dit budget in wilt zetten voor verlof, betaald u over het bijzonder budget een eigen bijdrage. Bij opname van verlof moet eerst het bijzonder budget worden ingezet. Vult u in blauwe vak een gewenst aantal uren verlof in. Dit moet liggen tussen de 0 en de 170 uur."}]
[]
["Ondertekening bevoegd gezag en aanvrager"]
[]
["Naam medewerker"]
["Geboortedatum"]
["Ingangsdatum voor salarisadministratie"]
[]
["Ondertekening medewerker",null,null,null,"Ondetekening bevoegd gezag"]
["Datum",null,null,null,"Datum"]
["Handtekening",null,null,null,"Handtekening"]

{"sheet":"2026","index":2,"n_rows":31,"n_cols":26,"rows_kept":31,"cut":false,"hidden":true,"merged":[]}
[null,1,2,3,4,5,6,7,8,9,10,11,12,13,14,15,16,"a","b","c","d",null,"Oktobertoelage",null,"Arbeidsmarkttoelage","Oktobertoelage"]
["LB",3622,3710,3821,3933,4046,4185,4348,4533,4742,4975,5234,5520,null,null,null,null,null,null,null,null,"LB12",1640]
["LC",3644,3817,4015,4213,4409,4629,4873,5138,5427,5740,6074,6432,null,null,null,null,null,null,null,null,"LC12",1640]
["LD",3659,3874,4125,4376,4627,4910,5225,5577,5960,6378,6828,7313,null,null,null,null,null,null,null,null,"LD12",1640]
["LE",4695,4870,5025,5341,5691,6011,6329,6649,6969,7287,7605,8065,null,null,null,null,null,null,null,null,"LE12",1640]
["D12",3659,3874,4125,4376,4627,4910,5225,5577,5960,6378,6828,7313]
["D13",5691,5889,6088,6285,6483,6682,6879,7076,7274,7471,7670,7867,8065,null,null,null,null,null,null,null,"D1212",1640,"D12",{"$f":"2400*1.1","v":2640}]
["D14",6517,6681,7004,7209,7416,7621,7828,8036,8253,8478,8708,null,null,null,null,null,null,null,null,null,"D1313",1640,"D13",{"$f":"1200*1.1","v":1320}]
["D15",6841,7004,7209,7621,7828,8036,8253,8478,8708,8984,9270,9562,null,null,null,null,null,null,null,null,"D1411",1640]
["A11",3644,3817,4015,4213,4409,4629,4873,5138,5427,5740,6074,6432,null,null,null,null,null,null,null,null,"D1512",1640]
["A12",3659,3874,4125,4376,4627,4910,5225,5577,5960,6378,6828,7313]
["A13",5691,5889,6088,6285,6483,6682,6879,7076,7274,7471,7670,7867,8065,null,null,null,null,null,null,null,"A1013",1640,"A10",{"$f":"1600*1.1","v":1760.0000000000002}]
[1,2559.54,2559.54,2559.54,2580,2634,2689,2743,null,null,null,null,null,null,null,null,null,null,null,null,null,"A1116",1640,"A11",{"$f":"1600*1.1","v":1760.0000000000002}]
[2,2559.54,2559.54,2580,2641,2702,2764,2825,2886,null,null,null,null,null,null,null,null,null,null,null,null,"A1212",1640,"A12",{"$f":"800*1.1","v":880.00000000000011}]
[3,2559.54,2574,2651,2729,2806,2884,2961,3039,3116,null,null,null,null,null,null,null,null,null,null,null,"A1313",1640]
[4,2559.54,2598,2673,2748,2822,2897,2971,3046,3121,3195,3270]
[5,2559.54,2637,2723,2810,2896,2982,3068,3154,3240,3326,3412,null,null,null,null,null,null,null,null,null,"910",1640]
[6,2672,2766,2859,2953,3047,3141,3235,3329,3422,3516,3610,null,null,null,null,null,null,null,null,null,"1012",1640]
[7,2798,2902,3005,3109,3212,3316,3419,3523,3626,3730,3833,3937,null,null,null,null,null,null,null,null,"1112",1640]
[8,3022,3152,3281,3411,3541,3671,3800,3930,4060,4190,4320,4449,null,null,null,null,null,null,null,null,"1212",1640]
[9,3326,3496,3835,4030,4201,4371,4534,4695,4870,5025,null,null,null,null,null,null,null,null,null,null,"1313",1640]
[10,3326,3659,3835,4030,4201,4371,4534,4695,4870,5025,5185,5341,5520,null,null,null,null,null,null,null,"1411",1640]
[11,3644,3817,4015,4213,4409,4629,4873,5138,5427,5740,6074,6432,null,null,null,null,null,null,null,null,"1512",1640]
[12,3659,3874,4125,4376,4627,4910,5225,5577,5960,6378,6828,7313,null,null,null,null,null,null,null,null,"1612",1640]
[13,5691,5889,6088,6285,6483,6682,6879,7076,7274,7471,7670,7867,8065,null,null,null,null,null,null,null,"1712",1640]
[14,6517,6681,7004,7209,7416,7621,7828,8036,8253,8478,8708]
[15,6841,7004,7209,7621,7828,8036,8253,8478,8708,8984,9270,9562]
[16,7416,7621,7828,8253,8478,8708,8984,9270,9562,9868,10179,10503]
[17,8036,8253,8478,8984,9270,9562,9868,10179,10503,10839,11182,11537]
["LIO1",{"$f":"3622/2","v":1811}]
["LIO2",{"$f":"3644/2","v":1822}]

{"sheet":"Overgangsregeling 1","index":3,"n_rows":30,"n_cols":14,"rows_kept":30,"cut":false,"hidden":true,"merged":[[11,0,11,1],[12,0,12,1],[13,0,13,1],[19,0,19,10],[28,10,29,12],[23,1,23,2],[24,1,24,2],[25,1,25,2],[28,1,28,2],[28,7,28,9]]}
["Overgangsregeling 1"]
[]
[]
[]
["Nieuwe regeling"]
["Basisbudget",null,{"$f":"ROUND(40*Startgegevens!$B$3,0)","v":40},"uur"]
["Bijzonder budget",null,{"$f":"ROUND(130*Startgegevens!$B$3,0)","v":130},"uur"]
["Totaal budget",null,{"$f":"SUM(C6:C7)","v":170},"uur"]
["Gewenst aantal uren verlof",null,0,{"$f":"\"tussen 0 en \"&C8","v":"tussen 0 en 170"},null,null,null,null,null,null,null,null,null,{"$f":"\"U heeft jaarlijks recht op \"&C8&\" uur aan verlof. Dit is opgebouwd uit een basisbudget van \"&C6&\" uur en een bijzonder budget van \"&C7","v":"U heeft jaarlijks recht op 170 uur aan verlof. Dit is opgebouwd uit een basisbudget van 40 uur en een bijzonder budget van 130"}]
[null,null,null,null,null,null,null,null,null,null,null,null,null," uur. Wanneer u een deel van dit budget in wilt zetten voor verlof, betaald u over een vaste verhouding van deze uren een eigen bijdrage. "]
["Resultaat",null,null,null,null,null,null,null,null,null,null,null,null,{"$f":"\"Vult u in blauwe vak een gewenst aantal uren verlof in. Dit moet liggen tussen de 0 en de \"&C8&\" uur. \"","v":"Vult u in blauwe vak een gewenst aantal uren verlof in. Dit moet liggen tussen de 0 en de 170 uur. "}]
["Aantal uur verlof zonder eigen bijdrage",null,{"$f":"IF(C9=\"\",\"\",C9*(40/170))","v":0},"uur",null,null,null,null,null,null,null,null,null,{"$f":"\"Een hoger aantal uur verlof leidt tot een hogere eigen bijdrage en minder resterende uren voor duurzame inzetbaarheid. \"","v":"Een hoger aantal uur verlof leidt tot een hogere eigen bijdrage en minder resterende uren voor duurzame inzetbaarheid. "}]
["Aantal uur mét eigen bijdrage (bijzonder budget)",null,{"$f":"IF(C9=\"\",\"\",C9*(130/170))","v":0},"uur"]
["Beschikbaar voor duurzame inzetbaarheid",null,{"$f":"IF(C9=\"\",\"\",C6-C12+C7-C13)","v":170},"uur"]
[]
["Eigen bijdrage per maand",{"$f":"IF(C9=\"\",\"Vul gewenst aantal uren verlof in\",(C13/1659)*Startgegevens!$B$3*(Startgegevens!$B$6+Startgegevens!$B$7))","v":0},{"$f":"Startgegevens!C6","v":"Loonpeil 1 januari 2026"}]
[]
[]
["Toelichting"]
[{"$f":"N9&N10&N11&N12","v":"U heeft jaarlijks recht op 170 uur aan verlof. Dit is opgebouwd uit een basisbudget van 40 uur en een bijzonder budget van 130 uur. Wanneer u een deel van dit budget in wilt zetten voor verlof, betaald u over een vaste verhouding van deze uren een eigen bijdrage. Vult u in blauwe vak een gewenst aantal uren verlof in. Dit moet liggen tussen de 0 en de 170 uur. Een hoger aantal uur verlof leidt tot een hogere eigen bijdrage en minder resterende uren voor duurzame inzetbaarheid. "}]
[]
["Ondertekening bevoegd gezag en aanvrager"]
[]
["Naam medewerker"]
["Geboortedatum"]
["Ingangsdatum voor salarisadministratie"]
[]
["Ondertekening medewerker",null,null,null,"Ondetekening bevoegd gezag"]
["Datum",null,null,null,"Datum"]
["Handtekening",null,null,null,"Handtekening"]

{"sheet":"Overgangsregeling 2","index":4,"n_rows":32,"n_cols":14,"rows_kept":32,"cut":false,"hidden":true,"merged":[[21,0,21,11],[30,10,31,12],[25,1,25,2],[26,1,26,2],[27,1,27,2],[30,1,30,2],[30,7,30,9]]}
["Overgangsregeling 2"]
[]
[]
[]
["Overgangsregeling 2"]
["Basisbudget",null,{"$f":"ROUND(40*Startgegevens!$B$3,0)","v":40},"uur",null,null,null,null,null,null,null,null,null,{"$f":"\"U heeft jaarlijks recht op \"&C9&\" uur aan duurzame inzetbaarheid. Dit is opgebouwd uit een basisbudget van \"&C6&\" uur, een bijzonder budget van \"&C7&\" uur en een overgangsbudget van \"&C8&\" uur. \"","v":"U heeft jaarlijks recht op 340 uur aan duurzame inzetbaarheid. Dit is opgebouwd uit een basisbudget van 40 uur, een bijzonder budget van 130 uur en een overgangsbudget van 170 uur. "}]
["Bijzonder budget",null,{"$f":"ROUND(130*Startgegevens!$B$3,0)","v":130},"uur",null,null,null,null,null,null,null,null,null,{"$f":"\"Wanneer u een deel van dit budget in wilt zetten voor verlof, betaald u over het bijzonder budget en het overgangsbudget een eigen bijdrage. Het overgangsbudget kan enkel ingezet worden voor verlof. \"","v":"Wanneer u een deel van dit budget in wilt zetten voor verlof, betaald u over het bijzonder budget en het overgangsbudget een eigen bijdrage. Het overgangsbudget kan enkel ingezet worden voor verlof. "}]
["Overgangsbudget",null,{"$f":"ROUND(170*Startgegevens!$B$3,0)","v":170},"uur",null,null,null,null,null,null,null,null,null,{"$f":"\"Vult u in het eerste blauwe vak uw gewenst aantal uren verlof in. Dit moet liggen tussen de 0 en de \"&C9&\" uur. In het tweede blauwe vak moet u een keuze maken hoeveel uur van dit verlof u wilt putten uit het overgangsbudget. \"","v":"Vult u in het eerste blauwe vak uw gewenst aantal uren verlof in. Dit moet liggen tussen de 0 en de 340 uur. In het tweede blauwe vak moet u een keuze maken hoeveel uur van dit verlof u wilt putten uit het overgangsbudget. "}]
["Totaal budget",null,{"$f":"SUM(C6:C8)","v":340},"uur",null,null,null,null,null,null,null,null,null,{"$f":"\"Een laag gebruik van het overgangsbudget zorgt voor een lage eigen bijdrage en een laag restant aan uren voor duurzame inzetbaarheid. \"","v":"Een laag gebruik van het overgangsbudget zorgt voor een lage eigen bijdrage en een laag restant aan uren voor duurzame inzetbaarheid. "}]
["Gewenst aantal uur verlof",null,0,{"$f":"\"tussen 0 en \"&C9","v":"tussen 0 en 340"},null,null,null,null,null,null,null,null,null,{"$f":"\"Een hoog gebruik van het overgangsbudget zorgt voor een hoge eigen bijdrage, maar ook een hoog restant aan uren voor duurzame inzetbaarheid. \"","v":"Een hoog gebruik van het overgangsbudget zorgt voor een hoge eigen bijdrage, maar ook een hoog restant aan uren voor duurzame inzetbaarheid. "}]
["Waarvan overgangsbudget (eigen bijdrage)",null,null,{"$f":"IF(C10=\"\",\"\",(\"tussen \"&IF(C10>C8,C10-C8,0)&\" en \"&IF(C10<C8,C10,C8)))","v":"tussen 0 en 0"},null,null,null,null,null,null,null,null,null,{"$f":"\"Over de uren verlof die niet uit het overgangsbudget komen wordt een vaste verhouding geput uit het bijzonder budget dus betaald u over een vaste verhouding een eigen bijdrage. \"","v":"Over de uren verlof die niet uit het overgangsbudget komen wordt een vaste verhouding geput uit het bijzonder budget dus betaald u over een vaste verhouding een eigen bijdrage. "}]
[]
["Resultaat"]
["Aantal uur verlof zonder eigen bijdrage",null,{"$f":"IF(C10=\"\",\"\",IF(C11=\"\",\"\",(IF($C$10-$C$11>0,($C$10-$C$11)*(40/170),0))))","v":""},"uur"]
["Aantal uur verlof mét eigen bijdrage (bijzonder budget)",null,{"$f":"IF(C10=\"\",\"\",IF(C11=\"\",\"\",(IF($C$10-$C$11>0,($C$10-$C$11)*(130/170),0))))","v":""},"uur"]
["Aantal uur verlof mét eigen bijdrage (overgangsbudget)",null,{"$f":"IF(C10=\"\",\"\",IF(C11=\"\",\"\",(C11)))","v":""},"uur",null,{"$f":"C16+C15","v":{"$error":"#VALUE!"}}]
["Beschikbaar voor duurzame inzetbaarheid",null,{"$f":"IF(C10=\"\",\"\",IF(C11=\"\",\"\",(C6-C14+C7-C15)))","v":""},"uur"]
[]
["Eigen bijdrage per maand",{"$f":"IF(C10=\"\",\"Vul gewenst aantal uur verlof in\",IF(C11=\"\",\"Vul gewenst aantal uren overgangsbudget in\",(((C16+C15)/1659)*Startgegevens!$B$3*(Startgegevens!$B$6+Startgegevens!$B$7))))","v":"Vul gewenst aantal uren overgangsbudget in"},{"$f":"Startgegevens!C6","v":"Loonpeil 1 januari 2026"}]
[]
["Toelichting"]
[{"$f":"N6&N7&N8&N9&N10&N11","v":"U heeft jaarlijks recht op 340 uur aan duurzame inzetbaarheid. Dit is opgebouwd uit een basisbudget van 40 uur, een bijzonder budget van 130 uur en een overgangsbudget van 170 uur. Wanneer u een deel van dit budget in wilt zetten voor verlof, betaald u over het bijzonder budget en het overgangsbudget een eigen bijdrage. Het overgangsbudget kan enkel ingezet worden voor verlof. Vult u in het eerste blauwe vak uw gewenst aantal uren verlof in. Dit moet liggen tussen de 0 en de 340 uur. In het tweede blauwe vak moet u een keuze maken hoeveel uur van dit verlof u wilt putten uit het overgangsbudget. Een laag gebruik van het overgangsbudget zorgt voor een lage eigen bijdrage en een laag restant aan uren voor duurzame inzetbaarheid. Een hoog gebruik van het overgangsbudget zorgt voor een hoge eigen bijdrage, maar ook een hoog restant aan uren voor duurzame inzetbaarheid. Over de uren verlof die niet uit het overgangsbudget komen wordt een vaste verhouding geput uit het bijzonder budget dus betaald u over een vaste verhouding een eigen bijdrage. "}]
[]
["Ondertekening bevoegd gezag en aanvrager"]
[]
["Naam medewerker"]
["Geboortedatum"]
["Ingangsdatum voor salarisadministratie"]
[]
["Ondertekening medewerker",null,null,null,"Ondetekening bevoegd gezag"]
["Datum",null,null,null,"Datum"]
["Handtekening",null,null,null,"Handtekening"]